Workbook

Sheet Sheet1
A1: 2025年天门市卫健系统所属事业单位人才引进总成绩及排名一览表
A2: 序号 | B2: 招考单位 | C2: 招聘岗位 | D2: 引进计划数 | E2: 姓名 | F2: 名次 | G2: 笔试成绩 | H2: 笔试总成绩 | I2: 面试成绩 | J2: 面试总成绩 | K2: 总成绩 | L2: 备注
A3: 1 | B3: 天门市第一人民医院 | C3: 呼吸内科医师 | D3: 4 | E3: 梁小红 | F3: 1 | I3: 84.4 | J3: =I3 -> 84.4 | K3: =J3 -> 84.4 | L3: 免笔试
A4: 2 | B4: 天门市第一人民医院 | C4: 呼吸内科医师 | E4: 朱羽熙 | F4: 2 | I4: 81.2 | J4: 81.2 | K4: 81.2 | L4: 免笔试
A5: 3 | B5: 天门市第一人民医院 | C5: 呼吸内科医师 | E5: 刘依雪 | F5: 3 | I5: 79.4 | J5: 79.4 | K5: 79.4 | L5: 免笔试
A6: 4 | B6: 天门市第一人民医院 | C6: 呼吸内科医师 | E6: 陈敬华 | F6: 4 | I6: 74.6 | J6: 74.6 | K6: 74.6 | L6: 免笔试
A7: 5 | B7: 天门市第一人民医院 | C7: 呼吸内科医师 | E7: 刘梦玲 | F7: 5 | I7: 0 | J7: 0 | K7: 0 | L7: 免笔试
A8: 6 | B8: 天门市第一人民医院 | C8: 呼吸内科医师 | E8: 姚璐 | F8: 5 | I8: 0 | J8: 0 | K8: 0 | L8: 免笔试
A9: 7 | B9: 天门市第一人民医院 | C9: 心内科医师 | D9: 2 | E9: 李玉婷 | F9: 1 | I9: 78.6 | J9: 78.6 | K9: 78.6 | L9: 免笔试
A10: 8 | B10: 天门市第一人民医院 | C10: 心内科医师 | E10: 桂秦娟 | F10: 2 | I10: 76 | J10: 76 | K10: 76 | L10: 免笔试
A11: 9 | B11: 天门市第一人民医院 | C11: 心内科医师 | E11: 鲁攀 | F11: 3 | I11: 73.4 | J11: 73.4 | K11: 73.4 | L11: 免笔试
A12: 10 | B12: 天门市第一人民医院 | C12: 心内科医师 | E12: 石志豪 | F12: 4 | I12: 73 | J12: 73 | K12: 73 | L12: 免笔试
A13: 11 | B13: 天门市第一人民医院 | C13: 心内科医师 | E13: 周兴宇 | F13: 5 | I13: 61.8 | J13: 61.8 | K13: 61.8 | L13: 免笔试
A14: 12 | B14: 天门市第一人民医院 | C14: 儿科医师-1 | D14: 2 | E14: 王婉蓉 | F14: 1 | I14: 78 | J14: 78 | K14: 78 | L14: 免笔试
A15: 13 | B15: 天门市第一人民医院 | C15: 儿科医师-1 | E15: 程明娇 | F15: 2 | I15: 74.8 | J15: 74.8 | K15: 74.8 | L15: 免笔试
A16: 14 | B16: 天门市第一人民医院 | C16: 儿科医师-1 | E16: 吴新月 | F16: 3 | I16: 63.4 | J16: 63.4 | K16: 63.4 | L16: 免笔试
A17: 15 | B17: 天门市第一人民医院 | C17: 儿科医师-1 | E17: 吕振华 | F17: 4 | I17: 0 | J17: 0 | K17: 0 | L17: 免笔试
A18: 16 | B18: 天门市第一人民医院 | C18: 新生儿科医师 | D18: 2 | E18: 陈文君 | F18: 1 | I18: 71 | J18: 71 | K18: 71 | L18: 免笔试
A19: 17 | B19: 天门市第一人民医院 | C19: 血液内科医师 | D19: 2 | E19: 郭巧 | F19: 1 | I19: 0 | J19: 0 | K19: 0 | L19: 免笔试
A20: 18 | B20: 天门市第一人民医院 | C20: 血液内科医师 | E20: 黄诗晋 | F20: 1 | I20: 0 | J20: 0 | K20: 0 | L20: 免笔试
A21: 19 | B21: 天门市第一人民医院 | C21: 肿瘤科医师 | D21: 3 | E21: 金伍梅 | F21: 1 | I21: 85.8 | J21: 85.8 | K21: 85.8 | L21: 免笔试
A22: 20 | B22: 天门市第一人民医院 | C22: 肿瘤科医师 | E22: 金叶 | F22: 2 | I22: 82.2 | J22: 82.2 | K22: 82.2 | L22: 免笔试
A23: 21 | B23: 天门市第一人民医院 | C23: 肿瘤科医师 | E23: 江政 | F23: 3 | I23: 81.6 | J23: 81.6 | K23: 81.6 | L23: 免笔试
A24: 22 | B24: 天门市第一人民医院 | C24: 肿瘤科医师 | E24: 谢逸伟 | F24: 4 | I24: 72.8 | J24: 72.8 | K24: 72.8 | L24: 免笔试
A25: 23 | B25: 天门市第一人民医院 | C25: 肿瘤科医师 | E25: 刘倩文 | F25: 5 | I25: 61.4 | J25: 61.4 | K25: 61.4 | L25: 免笔试
A26: 24 | B26: 天门市第一人民医院 | C26: 肿瘤科医师 | E26: 叶珊珊 | F26: 6 | I26: 0 | J26: 0 | K26: 0 | L26: 免笔试
A27: 25 | B27: 天门市第一人民医院 | C27: 神经内科医师 | D27: 4 | E27: 吴玻 | F27: 1 | I27: 84.4 | J27: 84.4 | K27: 84.4 | L27: 免笔试
A28: 26 | B28: 天门市第一人民医院 | C28: 神经内科医师 | E28: 王星 | F28: 2 | I28: 84.2 | J28: 84.2 | K28: 84.2 | L28: 免笔试
A29: 27 | B29: 天门市第一人民医院 | C29: 神经内科医师 | E29: 刘颜华 | F29: 3 | I29: 79.4 | J29: 79.4 | K29: 79.4 | L29: 免笔试
A30: 28 | B30: 天门市第一人民医院 | C30: 神经内科医师 | E30: 徐斯聪 | F30: 4 | I30: 74.4 | J30: 74.4 | K30: 74.4 | L30: 免笔试
A31: 29 | B31: 天门市第一人民医院 | C31: 神经内科医师 | E31: 江少丰 | F31: 5 | I31: 74 | J31: 74 | K31: 74 | L31: 免笔试
A32: 30 | B32: 天门市第一人民医院 | C32: 神经内科医师 | E32: 董森位 | F32: 6 | I32: 71.6 | J32: 71.6 | K32: 71.6 | L32: 免笔试
A33: 31 | B33: 天门市第一人民医院 | C33: 神经内科医师 | E33: 王宗莹 | F33: 7 | I33: 0 | J33: 0 | K33: 0 | L33: 免笔试
A34: 32 | B34: 天门市第一人民医院 | C34: 神经内科医师 | E34: 彭刚 | F34: 7 | I34: 0 | J34: 0 | K34: 0 | L34: 免笔试
A35: 33 | B35: 天门市第一人民医院 | C35: 全科医学科医师-1 | D35: 2 | E35: 陈余文 | F35: 1 | I35: 77.2 | J35: 77.2 | K35: 77.2 | L35: 免笔试
A36: 34 | B36: 天门市第一人民医院 | C36: 全科医学科医师-1 | E36: 琚盼雨 | F36: 2 | I36: 70.4 | J36: 70.4 | K36: 70.4 | L36: 免笔试
A37: 35 | B37: 天门市第一人民医院 | C37: 全科医学科医师-2 | D37: 2 | E37: 刘宇乾 | F37: 1 | G37: 72.5 | H37: =G37*0.4 -> 29 | I37: 79.2 | J37: =I37*0.6 -> 47.52 | K37: =J37+H37 -> 76.52
A38: 36 | B38: 天门市第一人民医院 | C38: 全科医学科医师-2 | E38: 李川林 | F38: 2 | G38: 76.5 | H38: 30.6 | I38: 72 | J38: 43.2 | K38: 73.8
A39: 37 | B39: 天门市第一人民医院 | C39: 精神科医师-1 | D39: 2 | E39: 吴仪 | F39: 1 | I39: 86.2 | J39: =I39 -> 86.2 | K39: =J39 -> 86.2 | L39: 免笔试
A40: 38 | B40: 天门市第一人民医院 | C40: 内科医师-1 | D40: 12 | E40: 陈湘 | F40: 1 | G40: 81.5 | H40: 32.6 | I40: 80.4 | J40: 48.24 | K40: 80.84
A41: 39 | B41: 天门市第一人民医院 | C41: 内科医师-1 | E41: 朱海涛 | F41: 2 | G41: 75 | H41: 30 | I41: 83.8 | J41: 50.28 | K41: 80.28
A42: 40 | B42: 天门市第一人民医院 | C42: 内科医师-1 | E42: 熊创 | F42: 3 | G42: 79 | H42: 31.6 | I42: 80.4 | J42: 48.24 | K42: 79.84
A43: 41 | B43: 天门市第一人民医院 | C43: 内科医师-1 | E43: 徐梦真 | F43: 4 | G43: 79 | H43: 31.6 | I43: 79 | J43: 47.4 | K43: 79
A44: 42 | B44: 天门市第一人民医院 | C44: 内科医师-1 | E44: 高锐 | F44: 5 | G44: 75 | H44: 30 | I44: 80.8 | J44: 48.48 | K44: 78.48
A45: 43 | B45: 天门市第一人民医院 | C45: 内科医师-1 | E45: 蔡印池 | F45: 6 | G45: 83.5 | H45: 33.4 | I45: 74.8 | J45: 44.88 | K45: 78.28
A46: 44 | B46: 天门市第一人民医院 | C46: 内科医师-1 | E46: 胡婉妍 | F46: 7 | G46: 74.5 | H46: 29.8 | I46: 76.6 | J46: 45.96 | K46: 75.76
A47: 45 | B47: 天门市第一人民医院 | C47: 内科医师-1 | E47: 晏珊珊 | F47: 8 | G47: 80.5 | H47: 32.2 | I47: 72.2 | J47: 43.32 | K47: 75.52
A48: 46 | B48: 天门市第一人民医院 | C48: 内科医师-1 | E48: 陈宇轩 | F48: 9 | G48: 74.5 | H48: 29.8 | I48: 74.8 | J48: 44.88 | K48: 74.68
A49: 47 | B49: 天门市第一人民医院 | C49: 内科医师-1 | E49: 徐爱民 | F49: 10 | G49: 71.5 | H49: 28.6 | I49: 76.4 | J49: 45.84 | K49: 74.44
A50: 48 | B50: 天门市第一人民医院 | C50: 内科医师-1 | E50: 江新月 | F50: 11 | G50: 77 | H50: 30.8 | I50: 72.6 | J50: 43.56 | K50: 74.36
A51: 49 | B51: 天门市第一人民医院 | C51: 内科医师-1 | E51: 梁颖 | F51: 12 | G51: 73 | H51: 29.2 | I51: 74.8 | J51: 44.88 | K51: 74.08
A52: 50 | B52: 天门市第一人民医院 | C52: 内科医师-1 | E52: 吴佳豪 | F52: 13 | G52: 77.5 | H52: 31 | I52: 69.8 | J52: 41.88 | K52: 72.88
A53: 51 | B53: 天门市第一人民医院 | C53: 内科医师-1 | E53: 廖正雄 | F53: 14 | G53: 76.5 | H53: 30.6 | I53: 69.2 | J53: 41.52 | K53: 72.12
A54: 52 | B54: 天门市第一人民医院 | C54: 急诊内科医师 | D54: 4 | E54: 鄢雨菲 | F54: 1 | G54: 80 | H54: 32 | I54: 79.4 | J54: 47.64 | K54: 79.64
A55: 53 | B55: 天门市第一人民医院 | C55: 急诊内科医师 | E55: 蔡忠团 | F55: 2 | G55: 69.5 | H55: 27.8 | I55: 79 | J55: 47.4 | K55: 75.2
A56: 54 | B56: 天门市第一人民医院 | C56: 急诊内科医师 | E56: 王名驰 | F56: 3 | G56: 66.5 | H56: 26.6 | I56: 72 | J56: 43.2 | K56: 69.8
A57: 55 | B57: 天门市第一人民医院 | C57: 耳鼻咽喉头颈外科医师 | D57: 1 | E57: 方芷萱 | F57: 1 | I57: 64.4 | J57: =I57 -> 64.4 | K57: =J57 -> 64.4 | L57: 免笔试
A58: 56 | B58: 天门市第一人民医院 | C58: 皮肤科医师 | D58: 2 | E58: 李士彬 | F58: 1 | G58: 74 | H58: =G58*0.4 -> 29.6 | I58: 73.6 | J58: =I58*0.6 -> 44.16 | K58: =J58+H58 -> 73.76
A59: 57 | B59: 天门市第一人民医院 | C59: 口腔科医师-1 | D59: 1 | E59: 罗雨商 | F59: 1 | I59: 79.6 | J59: 79.6 | K59: 79.6 | L59: 免笔试
A60: 58 | B60: 天门市第一人民医院 | C60: 口腔科医师-1 | E60: 江南 | F60: 2 | I60: 68 | J60: 68 | K60: 68 | L60: 免笔试
A61: 59 | B61: 天门市第一人民医院 | C61: 口腔科医师-2 | D61: 2 | E61: 陈雨微 | F61: 1 | G61: 82 | H61: 32.8 | I61: 77.4 | J61: 46.44 | K61: 79.24
A62: 60 | B62: 天门市第一人民医院 | C62: 口腔科医师-2 | E62: 刘荷艾 | F62: 2 | G62: 78 | H62: 31.2 | I62: 76.8 | J62: 46.08 | K62: 77.28
A63: 61 | B63: 天门市第一人民医院 | C63: 口腔科医师-2 | E63: 马宇婷 | F63: 3 | G63: 81 | H63: 32.4 | I63: 73.6 | J63: 44.16 | K63: 76.56
A64: 62 | B64: 天门市第一人民医院 | C64: 口腔科医师-2 | E64: 肖苇 | F64: 4 | G64: 80 | H64: 32 | I64: 66.2 | J64: 39.72 | K64: 71.72
A65: 63 | B65: 天门市第一人民医院 | C65: 口腔科医师-2 | E65: 付朴素 | F65: 5 | G65: 79 | H65: 31.6 | I65: 64.2 | J65: 38.52 | K65: 70.12
A66: 64 | B66: 天门市第一人民医院 | C66: 口腔科医师-2 | E66: 张毅 | F66: 6 | G66: 80 | H66: 32 | I66: 53.2 | J66: 31.92 | K66: 63.92
A67: 65 | B67: 天门市第一人民医院 | C67: 妇产科医师 | D67: 3 | E67: 李诗维 | F67: 1 | I67: 87 | J67: =I67 -> 87 | K67: =J67 -> 87 | L67: 免笔试
A68: 66 | B68: 天门市第一人民医院 | C68: 妇产科医师 | E68: 金姗姗 | F68: 2 | I68: 81 | J68: 81 | K68: 81 | L68: 免笔试
A69: 67 | B69: 天门市第一人民医院 | C69: 妇产科医师 | E69: 李武安 | F69: 3 | I69: 70.4 | J69: 70.4 | K69: 70.4 | L69: 免笔试
A70: 68 | B70: 天门市第一人民医院 | C70: 妇产科医师 | E70: 王旭 | F70: 4 | I70: 69.6 | J70: 69.6 | K70: 69.6 | L70: 免笔试
A71: 69 | B71: 天门市第一人民医院 | C71: 妇产科医师 | E71: 张娅 | F71: 5 | I71: 67.4 | J71: 67.4 | K71: 67.4 | L71: 免笔试
A72: 70 | B72: 天门市第一人民医院 | C72: 妇产科医师 | E72: 孔伟蒙 | F72: 6 | I72: 66.4 | J72: 66.4 | K72: 66.4 | L72: 免笔试
A73: 71 | B73: 天门市第一人民医院 | C73: 妇产科医师 | E73: 江岚 | F73: 7 | I73: 66.3 | J73: 66.3 | K73: 66.3 | L73: 免笔试
A74: 72 | B74: 天门市第一人民医院 | C74: 妇产科医师 | E74: 程文杏 | F74: 8 | I74: 61.8 | J74: 61.8 | K74: 61.8 | L74: 免笔试
A75: 73 | B75: 天门市第一人民医院 | C75: 妇产科医师 | E75: 张颖 | F75: 9 | I75: 61 | J75: 61 | K75: 61 | L75: 免笔试
A76: 74 | B76: 天门市第一人民医院 | C76: 妇产科医师 | E76: 李梦源 | F76: 10 | I76: 0 | J76: 0 | K76: 0 | L76: 免笔试
A77: 75 | B77: 天门市第一人民医院 | C77: 妇产科医师 | E77: 黄治中 | F77: 10 | I77: 0 | J77: 0 | K77: 0 | L77: 免笔试
A78: 76 | B78: 天门市第一人民医院 | C78: 妇产科医师 | E78: 傅昱娴 | F78: 10 | I78: 0 | J78: 0 | K78: 0 | L78: 免笔试
A79: 77 | B79: 天门市第一人民医院 | C79: 泌尿外科医师 | D79: 2 | E79: 陈诗 | F79: 1 | I79: 81.3 | J79: 81.3 | K79: 81.3 | L79: 免笔试
A80: 78 | B80: 天门市第一人民医院 | C80: 泌尿外科医师 | E80: 罗帆 | F80: 2 | I80: 77.2 | J80: 77.2 | K80: 77.2 | L80: 免笔试
A81: 79 | B81: 天门市第一人民医院 | C81: 泌尿外科医师 | E81: 王东 | F81: 3 | I81: 77.1 | J81: 77.1 | K81: 77.1 | L81: 免笔试
A82: 80 | B82: 天门市第一人民医院 | C82: 泌尿外科医师 | E82: 李好 | F82: 4 | I82: 76.6 | J82: 76.6 | K82: 76.6 | L82: 免笔试
A83: 81 | B83: 天门市第一人民医院 | C83: 泌尿外科医师 | E83: 陈科 | F83: 5 | I83: 73.2 | J83: 73.2 | K83: 73.2 | L83: 免笔试
A84: 82 | B84: 天门市第一人民医院 | C84: 泌尿外科医师 | E84: 王澍 | F84: 6 | I84: 68 | J84: 68 | K84: 68 | L84: 免笔试
A85: 83 | B85: 天门市第一人民医院 | C85: 泌尿外科医师 | E85: 刘恒 | F85: 7 | I85: 61.4 | J85: 61.4 | K85: 61.4 | L85: 免笔试
A86: 84 | B86: 天门市第一人民医院 | C86: 泌尿外科医师 | E86: 徐行 | F86: 8 | I86: 0 | J86: 0 | K86: 0 | L86: 免笔试
A87: 85 | B87: 天门市第一人民医院 | C87: 泌尿外科医师 | E87: 余书凡 | F87: 8 | I87: 0 | J87: 0 | K87: 0 | L87: 免笔试
A88: 86 | B88: 天门市第一人民医院 | C88: 泌尿外科医师 | E88: 吕援 | F88: 8 | I88: 0 | J88: 0 | K88: 0 | L88: 免笔试
A89: 87 | B89: 天门市第一人民医院 | C89: 康复科医师 | D89: 2 | E89: 汪梦晶 | F89: 1 | I89: 91.4 | J89: 91.4 | K89: 91.4 | L89: 免笔试
A90: 88 | B90: 天门市第一人民医院 | C90: 康复科医师 | E90: 罗艺 | F90: 2 | I90: 79.8 | J90: 79.8 | K90: 79.8 | L90: 免笔试
A91: 89 | B91: 天门市第一人民医院 | C91: 康复科医师 | E91: 刘澳琦 | F91: 3 | I91: 69 | J91: 69 | K91: 69 | L91: 免笔试
A92: 90 | B92: 天门市第一人民医院 | C92: 心功能科诊断医师 | D92: 1 | E92: 宋工玉 | F92: 1 | G92: 72.5 | H92: =G92*0.4 -> 29 | I92: 66.8 | J92: =I92*0.6 -> 40.08 | K92: =J92+H92 -> 69.08
A93: 91 | B93: 天门市第一人民医院 | C93: 病理诊断医师 | D93: 2 | E93: 李闽涵 | F93: 1 | G93: 72 | H93: 28.8 | I93: 75.4 | J93: 45.24 | K93: 74.04
A94: 92 | B94: 天门市第一人民医院 | C94: 影像诊断医师-1 | D94: 2 | E94: 付芳琴 | F94: 1 | I94: 79.4 | J94: =I94 -> 79.4 | K94: =J94 -> 79.4 | L94: 免笔试
A95: 93 | B95: 天门市第一人民医院 | C95: 影像诊断医师-1 | E95: 周紫琰 | F95: 2 | I95: 75.8 | J95: 75.8 | K95: 75.8 | L95: 免笔试
A96: 94 | B96: 天门市第一人民医院 | C96: 影像诊断医师-1 | E96: 杨媛 | F96: 3 | I96: 74.8 | J96: 74.8 | K96: 74.8 | L96: 免笔试
A97: 95 | B97: 天门市第一人民医院 | C97: 影像诊断医师-2 | D97: 3 | E97: 罗子云 | F97: 1 | G97: 78.5 | H97: 31.4 | I97: 71.2 | J97: 42.72 | K97: 74.12
A98: 96 | B98: 天门市第一人民医院 | C98: 影像诊断医师-2 | E98: 程荡 | F98: 2 | G98: 70 | H98: 28 | I98: 60.6 | J98: 36.36 | K98: 64.36
A99: 97 | B99: 天门市第一人民医院 | C99: 影像诊断医师-2 | E99: 黄迪 | F99: 3 | G99: 70 | H99: 28 | I99: 48.6 | J99: 29.16 | K99: 57.16
A100: 98 | B100: 天门市第一人民医院 | C100: 影像诊断医师-2 | E100: 方瑾 | F100: 4 | G100: 72.5 | H100: 29 | I100: 41.6 | J100: 24.96 | K100: 53.96
A101: 99 | B101: 天门市第一人民医院 | C101: 输血科技师 | D101: 1 | E101: 宋亚敏 | F101: 1 | I101: 71.6 | J101: =I101 -> 71.6 | K101: =J101 -> 71.6 | L101: 免笔试
A102: 100 | B102: 天门市第一人民医院 | C102: 输血科技师 | E102: 王鑫 | F102: 2 | I102: 66.2 | J102: 66.2 | K102: 66.2 | L102: 免笔试
A103: 101 | B103: 天门市第一人民医院 | C103: 输血科技师 | E103: 王金全 | F103: 3 | I103: 0 | J103: 0 | K103: 0 | L103: 免笔试
A104: 102 | B104: 天门市第一人民医院 | C104: 输血科技师 | E104: 王亚男 | F104: 3 | I104: 0 | J104: 0 | K104: 0 | L104: 免笔试
A105: 103 | B105: 天门市第一人民医院 | C105: 检验技师-1 | D105: 1 | E105: 周容容 | F105: 1 | I105: 77 | J105: 77 | K105: 77 | L105: 免笔试
A106: 104 | B106: 天门市第一人民医院 | C106: 检验技师-1 | E106: 胡啸 | F106: 2 | I106: 65.8 | J106: 65.8 | K106: 65.8 | L106: 免笔试
A107: 105 | B107: 天门市第一人民医院 | C107: 检验技师-1 | E107: 王涛 | F107: 3 | I107: 63.8 | J107: 63.8 | K107: 63.8 | L107: 免笔试
A108: 106 | B108: 天门市第一人民医院 | C108: 检验技师-1 | E108: 高智军 | F108: 4 | I108: 0 | J108: 0 | K108: 0 | L108: 免笔试
A109: 107 | B109: 天门市第一人民医院 | C109: 检验技师-1 | E109: 鄢一轩 | F109: 4 | I109: 0 | J109: 0 | K109: 0 | L109: 免笔试
A110: 108 | B110: 天门市第一人民医院 | C110: 检验技师-1 | E110: 陆思敏 | F110: 4 | I110: 0 | J110: 0 | K110: 0 | L110: 免笔试
A111: 109 | B111: 天门市第一人民医院 | C111: 检验技师-2 | D111: 1 | E111: 汤思 | F111: 1 | I111: 61.8 | J111: 61.8 | K111: 61.8 | L111: 免笔试
A112: 110 | B112: 天门市第一人民医院 | C112: 临床药师 | D112: 1 | E112: 徐达益 | F112: 1 | I112: 77.4 | J112: 77.4 | K112: 77.4 | L112: 免笔试
A113: 111 | B113: 天门市第一人民医院 | C113: 临床药师 | E113: 毛书振 | F113: 2 | I113: 74.4 | J113: 74.4 | K113: 74.4 | L113: 免笔试
A114: 112 | B114: 天门市第一人民医院 | C114: 临床药师 | E114: 陈璐 | F114: 3 | I114: 72.6 | J114: 72.6 | K114: 72.6 | L114: 免笔试
A115: 113 | B115: 天门市第一人民医院 | C115: 临床药师 | E115: 文灿 | F115: 4 | I115: 70.8 | J115: 70.8 | K115: 70.8 | L115: 免笔试
A116: 114 | B116: 天门市第一人民医院 | C116: 临床药师 | E116: 何煜 | F116: 5 | I116: 63.6 | J116: 63.6 | K116: 63.6 | L116: 免笔试
A117: 115 | B117: 天门市第一人民医院 | C117: 临床药师 | E117: 杨旭超 | F117: 6 | I117: 62.8 | J117: 62.8 | K117: 62.8 | L117: 免笔试
A118: 116 | B118: 天门市第一人民医院 | C118: 临床药师 | E118: 赵文瑜 | F118: 7 | I118: 46.2 | J118: 46.2 | K118: 46.2 | L118: 免笔试
A119: 117 | B119: 天门市第一人民医院 | C119: 临床药师 | E119: 秦梦婷 | F119: 8 | I119: 0 | J119: 0 | K119: 0 | L119: 免笔试
A120: 118 | B120: 天门市第一人民医院 | C120: 临床药师 | E120: 朱雨洁 | F120: 8 | I120: 0 | J120: 0 | K120: 0 | L120: 免笔试
A121: 119 | B121: 天门市第一人民医院 | C121: 临床药师 | E121: 胡可 | F121: 8 | I121: 0 | J121: 0 | K121: 0 | L121: 免笔试
A122: 120 | B122: 天门市第一人民医院 | C122: 临床药师 | E122: 刘吉瑞 | F122: 8 | I122: 0 | J122: 0 | K122: 0 | L122: 免笔试
A123: 121 | B123: 天门市第一人民医院 | C123: 软件工程师 | D123: 1 | E123: 刘勇 | F123: 1 | I123: 78.8 | J123: 78.8 | K123: 78.8 | L123: 免笔试
A124: 122 | B124: 天门市第一人民医院 | C124: 软件工程师 | E124: 李永轩 | F124: 2 | I124: 74.2 | J124: 74.2 | K124: 74.2 | L124: 免笔试
A125: 123 | B125: 天门市第一人民医院 | C125: 软件工程师 | E125: 李鹏程 | F125: 3 | I125: 70.2 | J125: 70.2 | K125: 70.2 | L125: 免笔试
A126: 124 | B126: 天门市第一人民医院 | C126: 软件工程师 | E126: 易玉玲 | F126: 4 | I126: 68.6 | J126: 68.6 | K126: 68.6 | L126: 免笔试
A127: 125 | B127: 天门市第一人民医院 | C127: 软件工程师 | E127: 李敬达 | F127: 5 | I127: 67.2 | J127: 67.2 | K127: 67.2 | L127: 免笔试
A128: 126 | B128: 天门市第一人民医院 | C128: 软件工程师 | E128: 黄日晨 | F128: 6 | I128: 66.6 | J128: 66.6 | K128: 66.6 | L128: 免笔试
A129: 127 | B129: 天门市第一人民医院 | C129: 软件工程师 | E129: 胡婕 | F129: 7 | I129: 61 | J129: 61 | K129: 61 | L129: 免笔试
A130: 128 | B130: 天门市第一人民医院 | C130: 软件工程师 | E130: 王祯 | F130: 8 | I130: 0 | J130: 0 | K130: 0 | L130: 免笔试
A131: 129 | B131: 天门市第一人民医院 | C131: 软件工程师 | E131: 杨硕鹏 | F131: 8 | I131: 0 | J131: 0 | K131: 0 | L131: 免笔试
A132: 130 | B132: 天门市中医医院 | C132: 外科医师 | D132: 2 | E132: 卢帅 | F132: 1 | G132: 81 | H132: =G132*0.4 -> 32.4 | I132: 0 | J132: =I132*0.6 -> 0 | K132: =J132+H132 -> 32.4
A133: 131 | B133: 天门市中医医院 | C133: 心血管内科医师 | D133: 1 | E133: 向桃 | F133: 1 | I133: 83.2 | J133: =I133 -> 83.2 | K133: =J133 -> 83.2 | L133: 免笔试
A134: 132 | B134: 天门市中医医院 | C134: 心血管内科医师 | E134: 桂文聂 | F134: 2 | I134: 76.6 | J134: 76.6 | K134: 76.6 | L134: 免笔试
A135: 133 | B135: 天门市中医医院 | C135: 心血管内科医师 | E135: 吴伟 | F135: 3 | I135: 0 | J135: 0 | K135: 0 | L135: 免笔试
A136: 134 | B136: 天门市妇幼保健院 | C136: 中医医师 | D136: 2 | E136: 韩瑾瑜 | F136: 1 | G136: 81 | H136: 32.4 | I136: 74.2 | J136: 44.52 | K136: 76.92
A137: 135 | B137: 天门市妇幼保健院 | C137: 中医医师 | E137: 孙友文 | F137: 2 | G137: 73 | H137: 29.2 | I137: 77.4 | J137: 46.44 | K137: 75.64
A138: 136 | B138: 天门市妇幼保健院 | C138: 中医医师 | E138: 谷弘 | F138: 3 | G138: 78 | H138: 31.2 | I138: 67.4 | J138: 40.44 | K138: 71.64
A139: 137 | B139: 天门市妇幼保健院 | C139: 药师 | D139: 1 | E139: 王贝 | F139: 1 | G139: 60 | H139: 24 | I139: 70.2 | J139: 42.12 | K139: 66.12
A140: 138 | B140: 天门市妇幼保健院 | C140: 药师 | E140: 孙子慧 | F140: 2 | G140: 60 | H140: 24 | I140: 60 | J140: 36 | K140: 60
A141: 139 | B141: 天门市妇幼保健院 | C141: 药师 | E141: 胡格 | F141: 3 | G141: 60 | H141: 24 | I141: 45 | J141: 27 | K141: 51
A142: 140 | B142: 天门市疾病预防控制中心 | C142: 检验技师 | D142: 3 | E142: 高春阳 | F142: 1 | G142: 73 | H142: 29.2 | I142: 79.2 | J142: 47.52 | K142: 76.72
A143: 141 | B143: 天门市疾病预防控制中心 | C143: 检验技师 | E143: 蔡庆玲 | F143: 2 | G143: 77 | H143: 30.8 | I143: 72.4 | J143: 43.44 | K143: 74.24
A144: 142 | B144: 天门市疾病预防控制中心 | C144: 检验技师 | E144: 熊紫怡 | F144: 3 | G144: 78 | H144: 31.2 | I144: 70.8 | J144: 42.48 | K144: 73.68
A145: 143 | B145: 天门市疾病预防控制中心 | C145: 检验技师 | E145: 袁晓薇 | F145: 4 | G145: 74 | H145: 29.6 | I145: 71.8 | J145: 43.08 | K145: 72.68
A146: 144 | B146: 天门市疾病预防控制中心 | C146: 检验技师 | E146: 涂文彦 | F146: 5 | G146: 73 | H146: 29.2 | I146: 69.6 | J146: 41.76 | K146: 70.96
A147: 145 | B147: 天门市疾病预防控制中心 | C147: 检验技师 | E147: 赵思路 | F147: 6 | G147: 77 | H147: 30.8 | I147: 62.4 | J147: 37.44 | K147: 68.24
A148: 146 | B148: 天门市疾病预防控制中心 | C148: 检验技师 | E148: 周欣怡 | F148: 7 | G148: 79 | H148: 31.6 | I148: 60 | J148: 36 | K148: 67.6
A149: 147 | B149: 天门市疾病预防控制中心 | C149: 检验技师 | E149: 李梦瑶 | F149: 8 | G149: 74 | H149: 29.6 | I149: 60 | J149: 36 | K149: 65.6
A150: 148 | B150: 天门市疾病预防控制中心 | C150: 检验技师 | E150: 汪彬彬 | F150: 9 | G150: 76 | H150: 30.4 | I150: 0 | J150: 0 | K150: 30.4
A151: 149 | B151: 天门市疾病预防控制中心 | C151: 检验技师 | E151: 向玉琴 | F151: 10 | G151: 73 | H151: 29.2 | I151: 0 | J151: 0 | K151: 29.2
A152: 150 | B152: 天门市疾病预防控制中心 | C152: 公共卫生医师 | D152: 4 | E152: 彭凌熙 | F152: 1 | G152: 87 | H152: 34.8 | I152: 83.6 | J152: 50.16 | K152: 84.96
A153: 151 | B153: 天门市疾病预防控制中心 | C153: 公共卫生医师 | E153: 姚含悦 | F153: 2 | G153: 79 | H153: 31.6 | I153: 77.2 | J153: 46.32 | K153: 77.92
A154: 152 | B154: 天门市疾病预防控制中心 | C154: 公共卫生医师 | E154: 王立奇 | F154: 3 | G154: 85 | H154: 34 | I154: 72.4 | J154: 43.44 | K154: 77.44
A155: 153 | B155: 天门市疾病预防控制中心 | C155: 公共卫生医师 | E155: 全晶 | F155: 4 | G155: 82 | H155: 32.8 | I155: 73.4 | J155: 44.04 | K155: 76.84
A156: 154 | B156: 天门市疾病预防控制中心 | C156: 公共卫生医师 | E156: 姜林娟 | F156: 5 | G156: 88 | H156: 35.2 | I156: 68.6 | J156: 41.16 | K156: 76.36
A157: 155 | B157: 天门市疾病预防控制中心 | C157: 公共卫生医师 | E157: 余晨骏 | F157: 6 | G157: 80 | H157: 32 | I157: 73.4 | J157: 44.04 | K157: 76.04
A158: 156 | B158: 天门市疾病预防控制中心 | C158: 公共卫生医师 | E158: 文芷萱 | F158: 7 | G158: 71 | H158: 28.4 | I158: 77.4 | J158: 46.44 | K158: 74.84
A159: 157 | B159: 天门市疾病预防控制中心 | C159: 公共卫生医师 | E159: 吕志强 | F159: 8 | G159: 71 | H159: 28.4 | I159: 66.6 | J159: 39.96 | K159: 68.36
A160: 158 | B160: 天门市疾病预防控制中心 | C160: 公共卫生医师 | E160: 徐正宇 | F160: 9 | G160: 80 | H160: 32 | I160: 47.6 | J160: 28.56 | K160: 60.56
A161: 159 | B161: 天门市疾病预防控制中心 | C161: 公共卫生医师 | E161: 鲁力康 | F161: 10 | G161: 84 | H161: 33.6 | I161: 0 | J161: 0 | K161: 33.6
A162: 160 | B162: 天门市疾病预防控制中心 | C162: 临床医师 | D162: 2 | E162: 汪昊 | F162: 1 | G162: 80 | H162: 32 | I162: 81.2 | J162: 48.72 | K162: 80.72
A163: 161 | B163: 天门市疾病预防控制中心 | C163: 临床医师 | E163: 王未来 | F163: 2 | G163: 76 | H163: 30.4 | I163: 79.8 | J163: 47.88 | K163: 78.28
A164: 162 | B164: 天门市疾病预防控制中心 | C164: 临床医师 | E164: 罗明亮 | F164: 3 | G164: 80 | H164: 32 | I164: 69.6 | J164: 41.76 | K164: 73.76
A165: 163 | B165: 天门市疾病预防控制中心 | C165: 临床医师 | E165: 李梓晗 | F165: 4 | G165: 74.5 | H165: 29.8 | I165: 70.6 | J165: 42.36 | K165: 72.16
A166: 164 | B166: 天门市疾病预防控制中心 | C166: 临床医师 | E166: 陈岳望 | F166: 5 | G166: 75.5 | H166: 30.2 | I166: 64.4 | J166: 38.64 | K166: 68.84
A167: 165 | B167: 天门市疾病预防控制中心 | C167: 临床医师 | E167: 周新月 | F167: 6 | G167: 84 | H167: 33.6 | I167: 47.4 | J167: 28.44 | K167: 62.04
A168: 166 | B168: 天门市精神病医院 | C168: 中医医师 | D168: 4 | E168: 李磊 | F168: 1 | I168: 86.8 | J168: =I168 -> 86.8 | K168: =J168 -> 86.8 | L168: 免笔试
A169: 167 | B169: 天门市精神病医院 | C169: 中医医师 | E169: 万聪 | F169: 2 | I169: 82.2 | J169: 82.2 | K169: 82.2 | L169: 免笔试
A170: 168 | B170: 天门市精神病医院 | C170: 中医医师 | E170: 柳镕 | F170: 3 | I170: 79.6 | J170: 79.6 | K170: 79.6 | L170: 免笔试
A171: 169 | B171: 天门市精神病医院 | C171: 中医医师 | E171: 韩晗 | F171: 4 | I171: 79.2 | J171: 79.2 | K171: 79.2 | L171: 免笔试
A172: 170 | B172: 天门市精神病医院 | C172: 中医医师 | E172: 林婕 | F172: 5 | I172: 75 | J172: 75 | K172: 75 | L172: 免笔试
A173: 171 | B173: 天门市精神病医院 | C173: 中医医师 | E173: 陈缘良 | F173: 6 | I173: 73.2 | J173: 73.2 | K173: 73.2 | L173: 免笔试
A174: 172 | B174: 天门市精神病医院 | C174: 中医医师 | E174: 吴贻森 | F174: 7 | I174: 69.6 | J174: 69.6 | K174: 69.6 | L174: 免笔试
A175: 173 | B175: 天门市精神病医院 | C175: 精神科医师 | D175: 2 | E175: 李昱廷 | F175: 1 | G175: 70.5 | H175: =G175*0.4 -> 28.2 | I175: 70.4 | J175: =I175*0.6 -> 42.24 | K175: =J175+H175 -> 70.44
A176: 174 | B176: 天门市精神病医院 | C176: 精神科医师 | E176: 齐凯凯 | F176: 2 | G176: 67.5 | H176: 27 | I176: 72.4 | J176: 43.44 | K176: 70.44
A177: 175 | B177: 天门市皮肤病防治所（侯口社区卫生服务中心） | C177: 中医医生 | D177: 1 | E177: 李霄晗 | F177: 1 | G177: 84 | H177: 33.6 | I177: 82.4 | J177: 49.44 | K177: 83.04
A178: 176 | B178: 天门市皮肤病防治所（侯口社区卫生服务中心） | C178: 中医医生 | E178: 伍宜飞 | F178: 2 | G178: 79 | H178: 31.6 | I178: 80 | J178: 48 | K178: 79.6
A179: 177 | B179: 天门市皮肤病防治所（侯口社区卫生服务中心） | C179: 皮肤科医生 | D179: 1 | E179: 邓泓涛 | F179: 1 | G179: 77.5 | H179: 31 | I179: 65.6 | J179: 39.36 | K179: 70.36
A180: 178 | B180: 天门市拖市镇中心卫生院 | C180: 临床医师 | D180: 1 | E180: 肖天宇 | F180: 1 | G180: 74 | H180: 29.6 | I180: 0 | J180: 0 | K180: 29.6
